bitfinex-derivatives/quotes_ETHF0:USTF0_20250627
["timestamp","ask_amount","ask_price","bid_price","bid_amount"]
[1751029447088,15.8723036,2431.8,2431.7,25.942]
[1751029447792,15.0501436,2431.8,2431.7,25.942]
[1751029448188,4.9978,2431.8,2431.7,25.942]
[1751029448387,4.9978,2431.8,2431.7,26.76419]
[1751029448596,9.9978,2431.8,2431.7,25.942]
[1751029448786,12.08587523,2431.8,2431.7,25.942]
[1751029448989,11.26371523,2431.8,2431.7,26.76419]
[1751029449286,11.26371523,2431.8,2431.7,25.942]
[1751029449493,6.26371523,2431.8,2431.7,26.76419]
[1751029450287,7.08587523,2431.8,2431.7,25.941]
[1751029450490,7.08587523,2431.8,2431.7,26.76319]
[1751029450687,14.47151523,2431.8,2431.7,25.941]
[1751029450996,15.29367523,2431.8,2431.7,25.941]
[1751029451596,9.47151523,2431.8,2431.7,26.76319]
[1751029452295,4.83621523,2431.8,2431.7,26.76319]
[1751029452799,3.97871523,2431.8,2431.7,26.76319]
[1751029453893,5.38271523,2431.8,2431.7,26.76319]
[1751029455098,3.15931523,2431.8,2431.7,29.97099]
[1751029456392,3.15931523,2431.8,2431.7,31.35439]
[1751029456593,1.8934,2431.8,2431.7,35.14035947]
[1751029457193,2.41640638,2432.6,2431.7,43.10413894]
[1751029457395,1.266583,2432.5,2432.1,3.2078]
[1751029457699,1.266583,2432.4,2432.3,0.82198]
[1751029457900,1.266583,2432.4,2432.3,26.83898]
[1751029458198,1.266583,2432.4,2432.3,0.82198]
[1751029458397,1.266583,2432.4,2432.3,33.81198]
[1751029459299,1.266583,2432.4,2432.3,37.59794947]
[1751029459491,0.1,2432.6,2432.5,0.82192]
[1751029459692,0.1,2432.6,2432.5,26.82292]
[1751029459898,0.1,2432.6,2432.5,30.60888947]
[1751029460099,0.1,2432.6,2432.5,31.96328947]
[1751029460802,0.1,2432.6,2432.5,28.17732]
[1751029460999,0.1,2432.6,2432.5,31.96328947]
[1751029463905,0.1,2432.6,2432.5,4.60788947]
[1751029464202,0.1,2432.6,2432.5,37.57788947]
[1751029464704,0.1,2432.6,2432.5,38.97298947]
[1751029465400,0.1,2432.6,2432.5,37.57788947]
[1751029465596,0.1,2432.6,2432.5,0.82192]
[1751029465807,0.1,2432.6,2432.5,33.77392]
[1751029466000,1.4345,2432.6,2432.5,33.77392]
[1751029466194,2.3419,2432.6,2432.5,0.82192]
[1751029466501,2.3419,2432.6,2432.5,33.77992]
[1751029467005,3.99859,2432.6,2432.5,0.82192]
[1751029467203,3.99859,2432.6,2432.5,33.77192]
[1751029467704,3.99859,2432.6,2432.5,0.82192]
[1751029467903,3.1767,2432.6,2432.5,0.82192]
[1751029468097,3.1767,2432.6,2432.5,25.966]
[1751029468307,8.99859,2432.6,2432.5,25.963]
[1751029468504,0.82192,2432.5,2432.4,3.2078]
[1751029468704,6.06628947,2432.5,2432.4,29.1728]
[1751029468903,11.06628947,2432.5,2432.4,29.99476]
[1751029470298,11.06628947,2432.5,2432.4,29.1728]
[1751029471403,6.4584,2432.5,2432.4,26.76296]
[1751029471599,1.4584,2432.5,2432.4,26.76296]
[1751029472204,3.4484,2432.5,2432.4,26.76296]
[1751029472401,1.99,2432.5,2432.4,29.97076]
[1751029473808,1.99,2432.5,2432.4,36.96376]
[1751029474009,3.3666,2432.5,2432.4,36.96376]
[1751029474609,4.63212041,2432.5,2432.4,36.96376]
[1751029474805,4.63212041,2432.5,2432.3,0.82197]
[1751029475013,4.60792947,2432.4,2432.3,6.973]
[1751029475212,5.98452947,2432.4,2432.3,33.74999]
[1751029475516,7.97452947,2432.4,2432.3,33.74999]
[1751029476412,9.24083779,2432.4,2432.3,33.74999]
[1751029476612,9.24083779,2432.4,2432.3,0.82199]
[1751029476804,9.24083779,2432.4,2432.3,26.77299]
[1751029477114,9.24083779,2432.4,2432.3,0.82199]
[1751029477311,0.82199,2432.3,2432.2,7.9005]
[1751029477508,0.82199,2432.3,2432.2,33.8325]
[1751029478810,0.82199,2432.3,2432.2,7.0785]
[1751029479011,2.26479,2432.3,2432.2,33.0105]
[1751029479416,2.26479,2432.3,2432.2,0.1025]
[1751029479710,3.5315906,2432.3,2432.2,0.1025]
[1751029481903,8.5315906,2432.3,2432.2,0.1025]
[1751029482307,10.5215906,2432.3,2432.2,0.1025]
[1751029483213,5.5215906,2432.3,2432.2,0.1025]
[1751029483908,10.5215906,2432.3,2432.2,0.1025]
[1751029484212,0.82216,2431.8,2431.7,3.2078]
[1751029484412,3.78596947,2432.0,2431.7,3.2078]
[1751029484611,0.82216,2431.8,2431.7,4.02996]
[1751029484813,1.99,2432.3,2431.7,4.02996]
[1751029484814,1.99,2432.3,2431.7,3.2078]
[1751029485011,0.82216,2431.8,2431.7,3.2078]
[1751029485206,0.82216,2431.8,2431.7,36.1168]
[1751029485510,4.60812947,2431.8,2431.7,10.1848]
[1751029485814,4.60812947,2431.8,2431.7,36.1168]
[1751029486208,2.09138639,2431.8,2431.7,3.2078]
[1751029486520,4.08138639,2431.8,2431.7,3.2078]
[1751029487610,4.08138639,2431.8,2431.4,1.6826]
[1751029487611,0.82226,2431.5,2431.4,4.8904]
[1751029487810,0.82226,2431.5,2431.4,37.8014]
[1751029488012,0.82225,2431.6,2431.5,0.82226]
[1751029488214,0.8514,2431.7,2431.6,0.82223]
[1751029488715,0.82223,2431.6,2431.5,0.82224]
[1751029489024,1.67361,2431.7,2431.5,0.82224]
[1751029489222,0.82223,2431.6,2431.5,0.82224]
[1751029489410,1.67362,2431.7,2431.6,0.82223]
[1751029489614,2.94181064,2431.7,2431.6,0.82223]
[1751029490124,1.67362,2431.7,2431.6,0.82223]
[1751029490318,0.82222,2431.7,2431.6,0.82223]
[1751029491624,1.99,2431.8,2431.7,0.82219]
[1751029491929,1.26860157,2431.8,2431.7,0.82219]
[1751029492422,1.26860157,2431.8,2431.6,0.8222]
[1751029492423,3.25860157,2431.8,2431.6,0.8222]
[1751029492620,1.26860157,2431.7,2431.6,0.8222]
[1751029493123,0.82223,2431.6,2431.5,0.82225]
[1751029493320,2.09079004,2431.6,2431.5,33.73525]
[1751029495029,1.26856004,2431.6,2431.5,33.73525]
[1751029495321,1.26856004,2431.6,2431.5,35.13755]
[1751029496315,0.8222,2431.7,2431.6,0.82223]
[1751029496520,2.09081737,2431.7,2431.6,26.75723]
[1751029502040,2.09081737,2431.7,2431.6,25.935]
[1751029502230,2.09080737,2431.7,2431.6,32.911]
[1751029502542,1.26861737,2431.7,2431.6,33.73323]
[1751029502744,1.99,2431.8,2431.7,0.82219]
[1751029503041,1.26885333,2431.8,2431.7,4.5358]
[1751029503242,1.34505333,2431.8,2431.7,5.35799]
[1751029505635,1.34505333,2431.8,2431.7,38.26699]
[1751029506038,1.34505333,2431.8,2431.7,5.35799]
[1751029506231,1.34505333,2431.8,2431.7,38.26699]
[1751029506435,2.16721333,2431.8,2431.7,38.26699]
[1751029506845,2.16721333,2431.8,2431.7,36.1078]
[1751029507156,2.16721333,2431.8,2431.7,29.1378]
[1751029507337,0.82219,2431.7,2431.6,6.97]
[1751029507538,0.82219,2431.7,2431.4,5.71267]
[1751029507539,0.82226,2431.6,2431.4,5.71267]
[1751029507736,1.26997644,2431.5,2431.4,5.71267]
[1751029508141,1.26997644,2431.5,2431.4,38.61167]
[1751029508338,1.99,2431.5,2431.4,38.61167]
[1751029508540,2.81226,2431.5,2431.4,5.71267]
[1751029508841,2.81226,2431.5,2431.4,37.7894]
[1751029509247,1.99,2431.5,2431.4,38.61169]
[1751029509441,2.81226,2431.5,2431.4,3.2078]
[1751029509643,2.81226,2431.5,2431.4,36.1058]
[1751029509841,1.99,2431.5,2431.4,36.92809]
[1751029510041,2.81226,2431.5,2431.4,36.92809]
[1751029510339,1.99,2431.5,2431.4,4.03009]
[1751029510540,1.99,2431.5,2431.4,36.92809]
[1751029510842,2.81226,2431.5,2431.4,36.1058]
[1751029511445,4.08313344,2431.5,2431.4,36.1058]
[1751029511646,4.08313344,2431.5,2431.4,36.92809]
[1751029511845,1.99,2431.5,2431.4,36.92809]
[1751029512039,3.26093555,2431.5,2431.4,36.92809]
[1751029512250,4.08319555,2431.5,2431.4,36.92809]
[1751029512444,4.08319555,2431.5,2431.4,36.1058]
[1751029512642,4.08319555,2431.5,2431.1,5.73498]
[1751029512843,0.82236,2431.2,2431.1,5.735]
[1751029513037,0.82236,2431.2,2431.1,38.633]
[1751029513238,6.60102712,2431.3,2431.2,0.82236]
[1751029513542,7.87213704,2431.3,2431.2,0.82236]
[1751029513948,3.26110992,2431.3,2431.2,0.82236]
[1751029514450,3.26110992,2431.3,2431.2,4.61102712]
[1751029514647,1.27110992,2431.3,2431.2,5.99932712]
[1751029514949,3.26110992,2431.3,2431.2,5.99932712]
[1751029515344,3.26110992,2431.3,2431.2,2.21066]
[1751029515542,4.08343992,2431.3,2431.2,0.82236]
[1751029515846,3.26110992,2431.3,2431.2,33.71936]
[1751029516034,4.08343992,2431.3,2431.2,33.71936]
[1751029516443,3.26110992,2431.3,2431.2,0.82236]
[1751029516648,3.26110992,2431.3,2431.2,33.71836]
[1751029517650,3.26110992,2431.3,2431.2,37.50702712]
[1751029517850,3.26110992,2431.3,2431.2,38.89532712]
[1751029522556,3.15860992,2431.3,2431.2,38.89532712]
[1751029522856,1.99,2431.3,2431.2,38.89532712]
[1751029525753,1.99,2431.3,2431.2,4.61102712]
[1751029526053,1.99,2431.3,2431.2,33.71436]
[1751029527953,1.99,2431.3,2431.2,35.07936]
[1751029529955,1.99,2431.3,2431.2,40.07936]
[1751029530854,1.99,2431.3,2431.2,2.18736]
[1751029531050,1.99,2431.3,2431.2,33.70836]
[1751029531646,1.99,2431.3,2431.2,7.79336]
[1751029531851,1.99,2431.3,2431.2,0.82236]
[1751029532058,1.99,2431.3,2431.2,33.70736]
[1751029532355,4.3017,2431.3,2431.2,33.70736]
[1751029534259,4.3017,2431.3,2431.1,3.2078]
[1751029534456,2.05604,2431.1,2430.5,3.2078]
[1751029534651,0.82256,2430.6,2430.5,3.2078]
[1751029534850,5.26427,2430.6,2430.1,4.9436]
[1751029535057,0.8227,2430.2,2430.1,10.1788]
[1751029535256,0.8227,2430.2,2430.1,36.0908]
[1751029535556,0.8227,2430.2,2430.1,3.2078]
[1751029535860,1.3634,2430.2,2430.1,29.1198]
[1751029536159,3.45438559,2430.2,2430.1,3.2078]
[1751029536358,2.1861,2430.2,2430.1,29.1188]
[1751029536548,3.45257832,2430.2,2430.1,3.2078]
[1751029536750,3.45257832,2430.2,2429.9,6.972]
[1751029536751,0.82277,2430.0,2429.9,6.972]
[1751029536947,0.82275,2430.1,2429.9,33.70978]
[1751029537159,1.4532,2430.0,2429.9,33.70978]
[1751029538162,1.4532,2430.0,2429.9,0.82278]
[1751029538460,1.4532,2430.0,2429.9,26.73778]
[1751029539356,4.03047,2430.3,2429.9,25.915]
[1751029539556,1.3276,2430.2,2429.8,52.5618]
[1751029539752,1.3276,2430.2,2430.1,0.82273]
[1751029540058,1.3276,2430.2,2430.1,26.73873]
[1751029540361,3.2078,2430.3,2430.2,0.8227]
[1751029540863,3.2078,2430.9,2430.8,0.8225]
[1751029541063,1.26417869,2430.9,2430.8,0.8225]
[1751029541359,1.40497869,2430.9,2430.8,0.8225]
[1751029541959,0.1408,2430.9,2430.8,0.8225]
[1751029542161,1.40481556,2430.9,2430.8,2.1629]
[1751029542560,1.40481556,2430.9,2430.8,3.0745]
[1751029543065,0.1408,2430.9,2430.8,3.0745]
[1751029547359,0.1408,2430.9,2430.8,37.1913]
[1751029547557,0.1408,2430.9,2430.8,32.1913]
[1751029548564,3.2078,2431.6,2431.0,2.05606]
[1751029548765,3.07213,2431.9,2431.5,3.2078]
[1751029549062,1.26335878,2431.6,2431.5,4.03006]
[1751029549264,3.07213,2431.9,2431.6,0.82223]
[1751029549559,2.1237399,2431.7,2431.5,3.2078]
[1751029549759,2.66991205,2431.6,2431.4,7.78126]
[1751029549963,1.4069,2431.6,2431.5,29.93506]
[1751029550362,0.8875,2431.7,2431.6,0.82223]
[1751029551053,0.8609,2431.7,2431.6,0.82223]
[1751029551462,2.7101,2431.7,2431.6,0.82223]
[1751029554966,2.7101,2431.7,2431.6,26.71923]
[1751029557273,1.8492,2431.7,2431.6,26.71923]
[1751029560063,1.8492,2431.7,2431.6,28.14073]
[1751029560370,0.88963,2431.7,2431.6,28.14073]
[1751029560963,0.9136,2432.2,2432.1,0.82206]
[1751029561163,0.9136,2432.2,2432.1,29.91786]
[1751029561573,1.0636,2432.2,2432.1,4.02986]
[1751029561764,1.0636,2432.2,2432.1,29.91686]
[1751029562063,1.0636,2432.2,2432.1,29.91586]
[1751029562572,1.0636,2432.2,2432.1,29.91486]
[1751029562974,0.15,2432.2,2432.1,37.19815434]
[1751029563274,0.15,2432.2,2432.1,4.02986]
[1751029563867,0.97202,2432.2,2432.1,29.0898]
[1751029564173,8.25531434,2432.2,2432.1,3.2078]
[1751029564360,8.25531434,2432.2,2432.1,29.0898]
[1751029565173,13.25531434,2432.2,2432.1,29.0898]
[1751029565575,13.25531434,2432.2,2432.1,29.91186]
[1751029565576,5.15,2432.2,2432.1,29.91186]
[1751029565776,0.97202,2432.2,2432.1,29.91186]
[1751029566374,0.15,2432.2,2432.1,29.91186]
[1751029566578,0.97202,2432.2,2432.1,29.91186]
[1751029566769,3.28292,2432.2,2432.1,29.91186]
[1751029566967,3.2829109,2432.2,2432.1,29.0898]
[1751029567281,3.2829109,2432.2,2432.1,29.91186]
[1751029567570,3.2829109,2432.2,2432.1,29.0898]
[1751029567979,3.2829109,2432.2,2432.1,29.90786]
[1751029568281,3.2829109,2432.2,2432.1,29.0858]
[1751029568975,3.2829109,2432.2,2432.1,29.90786]
[1751029569173,1.0317909,2432.2,2432.1,29.90786]
[1751029569868,1.0317909,2432.2,2432.1,36.84486]
[1751029571278,0.1499909,2432.2,2432.1,36.84486]
[1751029573681,0.1499909,2432.2,2432.1,38.28216]
[1751029574083,0.1499909,2432.2,2432.1,36.84486]
[1751029575383,0.1499909,2432.2,2432.1,38.28216]
[1751029576474,0.1499909,2432.2,2432.1,43.28216]
[1751029576670,9e-07,2432.2,2432.1,43.28216]
[1751029577084,9e-07,2432.2,2432.1,84.08216]
[1751029577983,0.8829,2433.1,2433.0,0.82175]
[1751029578182,2.14555657,2433.1,2433.0,33.62575]
[1751029578385,3.98555657,2433.1,2433.0,33.62575]
[1751029578577,2.7229,2433.1,2433.0,33.62575]
[1751029579981,2.7229,2433.1,2433.0,0.82175]
[1751029580179,4.1721,2433.1,2433.0,33.62175]
[1751029581779,2.7229,2433.1,2433.0,33.62175]
[1751029581981,1.84,2433.1,2433.0,33.62175]
[1751029583781,1.84,2433.1,2433.0,0.82175]
[1751029584288,0.82179,2432.9,2432.8,3.2078]
[1751029584487,0.82179,2432.9,2432.8,29.0618]
[1751029584880,3.15329,2432.9,2432.8,29.0618]
[1751029585189,5.14329,2432.9,2432.8,29.0618]
[1751029585385,4.3215,2432.9,2432.8,29.88362]
[1751029585586,2.8815,2432.9,2432.8,29.88362]
[1751029587390,2.8815,2432.9,2432.8,29.87962]
[1751029588190,1.99,2432.9,2432.8,29.87962]
[1751029589085,1.99,2432.9,2432.8,36.81462]
[1751029590396,1.99,2432.9,2432.8,4.02962]
[1751029591085,1.99,2432.9,2432.8,36.81162]
[1751029591687,1.99,2432.9,2432.8,4.02962]
[1751029591887,1.99,2432.9,2432.8,3.2078]
[1751029591888,15.09508434,2432.9,2432.8,3.2078]
[1751029592189,0.82185,2432.8,2432.6,7.75887]
[1751029592389,3.04955,2432.8,2432.7,25.844]
[1751029592586,1.99,2432.9,2432.8,0.82182]
[1751029592794,3.25108991,2432.9,2432.8,26.66582]
[1751029593794,3.25108991,2432.9,2432.8,29.87362]
[1751029597296,3.25108991,2432.9,2432.8,4.02962]
[1751029597498,3.25108991,2432.9,2432.8,36.78962]
[1751029597795,3.25108991,2432.9,2432.8,4.02962]
[1751029597995,3.25108991,2432.9,2432.8,36.78862]
[1751029598991,4.07287991,2432.9,2432.8,35.9658]
[1751029599200,0.82187,2432.7,2432.6,0.82189]
[1751029599394,0.82185,2432.8,2432.7,0.82185]
[1751029599599,0.82187,2432.7,2432.6,7.74186]
[1751029599897,0.82187,2432.7,2432.6,33.57886]
[1751029600090,0.82187,2432.7,2432.6,32.757]
[1751029600493,0.82187,2432.7,2432.6,33.57889]
[1751029600694,0.82187,2432.7,2432.6,32.757]
[1751029600900,0.82187,2432.7,2432.6,6.92]
[1751029601098,2.08655499,2432.7,2432.6,32.757]
[1751029601499,2.08655499,2432.7,2432.6,6.92]
[1751029601799,2.08655499,2432.7,2432.6,32.755]
[1751029602500,0.82189,2432.6,2432.5,59.4588]
[1751029602700,0.82189,2432.6,2432.5,85.2938]
[1751029603101,0.82189,2432.6,2432.5,86.11572]
[1751029603400,2.08793723,2432.6,2432.5,85.2938]
[1751029604297,0.82199,2432.3,2432.2,4.0521]
[1751029604505,0.82199,2432.3,2432.2,36.8061]
[1751029604804,0.82199,2432.3,2432.2,4.0521]
[1751029604997,0.82209,2432.0,2431.9,10.1278]
[1751029605193,0.82209,2432.0,2431.9,35.9598]
[1751029605394,0.82209,2432.0,2431.9,36.78193]
[1751029605594,0.82209,2432.0,2431.9,35.9598]
[1751029605791,0.82209,2432.0,2431.9,10.1278]
[1751029606002,2.81209,2432.0,2431.9,36.8367]
[1751029606901,2.81209,2432.0,2431.9,37.65882]
[1751029607395,1.99,2432.0,2431.9,4.90682]
[1751029607596,1.99,2432.0,2431.9,37.65982]
[1751029607797,1.99,2432.0,2431.9,37.65782]
[1751029609706,1.99,2432.0,2431.9,30.73883]
[1751029609907,1.99,2432.0,2431.9,29.86193]
[1751029610101,3.25544655,2432.0,2431.9,29.86193]
[1751029611106,3.25544655,2432.0,2431.9,29.85993]
[1751029611494,4.07753655,2432.0,2431.9,29.85993]
[1751029611901,3.25544655,2432.0,2431.9,29.85993]
[1751029612701,4.07753655,2432.0,2431.9,4.02993]
[1751029612908,4.07753655,2432.0,2431.9,36.77993]
[1751029613208,3.25544655,2432.0,2431.8,50.15013]
[1751029613408,0.82213,2431.9,2431.8,57.07213]
[1751029613708,0.82213,2431.9,2431.8,82.077]
[1751029614408,0.82213,2431.9,2431.8,82.89916]
[1751029614608,2.08577192,2431.9,2431.8,82.89916]
[1751029615207,0.82213,2431.9,2431.8,82.89916]
[1751029615506,2.81212,2432.0,2431.9,0.82212]
[1751029615701,4.0754209,2432.0,2431.9,0.82212]
[1751029617207,4.0753909,2432.0,2431.9,0.82212]
[1751029617507,3.2533009,2432.0,2431.9,0.82212]
[1751029618205,4.0753909,2432.0,2431.9,26.64712]
[1751029620609,4.0753909,2432.0,2431.9,25.825]
[1751029621615,4.0753909,2432.0,2431.9,26.64712]
[1751029621811,4.0753909,2432.0,2431.9,0.82212]
[1751029622009,4.0753909,2432.0,2431.9,26.64212]
[1751029622311,3.2533009,2432.0,2431.9,26.64212]
[1751029622511,1.99,2432.0,2431.9,29.84992]
[1751029624716,1.99,2432.0,2431.9,33.63760605]
[1751029625107,0.78059,2432.0,2431.9,38.63760605]
[1751029626206,0.78059,2432.0,2431.9,42.11837489]
[1751029628913,3.22691617,2432.8,2432.7,0.82185]
[1751029629109,4.4876355,2432.8,2432.7,26.63185]
[1751029629520,4.4876355,2432.8,2432.7,25.81]
[1751029629824,4.4876355,2432.8,2432.7,26.63185]
[1751029629825,1.26071933,2432.8,2432.7,26.63185]
[1751029630218,1.26071933,2432.8,2432.7,29.83965]
[1751029633228,3.2078,2433.2,2433.1,0.82172]
[1751029633528,3.2078,2433.2,2433.1,26.62272]
[1751029633529,4.46930124,2433.2,2433.1,26.62272]
[1751029633725,1.26150124,2433.2,2433.1,26.62272]
[1751029635826,1.26150124,2433.2,2433.1,27.51042]
[1751029636023,1.26150124,2433.2,2433.1,28.88292]
[1751029636629,1.4403,2433.7,2433.6,0.82155]
[1751029636825,1.26016628,2433.7,2433.6,26.61555]
[1751029637122,1.26016628,2433.7,2433.5,0.82157]
[1751029637331,1.26016628,2433.6,2433.5,7.72057]
[1751029637630,1.26016628,2433.6,2433.5,33.51357]
[1751029638020,0.8405,2434.0,2433.9,0.82145]
[1751029638220,0.8405,2434.0,2433.9,26.61345]
[1751029638427,2.10019603,2434.0,2433.9,26.61345]
[1751029639424,0.8405,2434.0,2433.9,26.61345]
[1751029639631,15.99719616,2434.3,2434.2,0.82135]
[1751029639824,14.1252475,2434.3,2434.2,26.60935]
[1751029640230,1.25798134,2434.3,2434.2,29.81715]
[1751029640422,7.26845489,2434.5,2434.0,0.8326]
[1751029640622,0.82131,2434.3,2434.1,32.684]
[1751029640829,0.82133,2434.3,2434.1,33.50538]
[1751029641023,0.9047,2434.2,2434.1,33.50538]
[1751029642219,0.82125,2434.5,2434.1,32.684]
[1751029642422,7.26845489,2434.6,2434.1,32.684]
[1751029642625,3.2078,2434.2,2433.6,0.82153]
[1751029642824,0.82152,2433.7,2433.6,25.78]
[1751029643034,0.8215,2433.8,2433.6,26.60154]
[1751029643233,2.2291,2433.8,2433.6,26.60154]
[1751029643435,1.4076,2433.8,2433.7,0.82152]
[1751029643625,0.82144,2434.0,2433.8,0.82148]
[1751029643832,2.6121,2434.1,2433.9,26.60043]
[1751029644032,2.6121,2434.1,2434.0,0.82142]
[1751029644232,4.0197,2434.1,2434.0,0.82142]
[1751029644436,3.1983,2434.1,2434.0,0.82142]
[1751029644834,5.1883,2434.1,2433.9,26.60043]
[1751029645136,0.82142,2434.0,2433.9,25.779]
[1751029645327,2.22902,2434.0,2433.9,26.60045]
[1751029645528,1.4076,2434.0,2433.9,25.779]
[1751029645833,2.22902,2434.0,2433.9,25.779]
[1751029646035,2.22903,2434.0,2433.8,25.776]
[1751029646331,0.82145,2433.9,2433.8,25.776]
[1751029646537,2.28005,2433.9,2433.8,25.776]
[1751029647636,0.82148,2433.8,2433.7,25.776]
[1751029647828,0.82152,2433.7,2433.6,6.897]
[1751029648030,1.69402,2433.7,2433.6,32.671]
[1751029648334,0.8725,2433.7,2433.6,33.49255]
[1751029648536,1.69402,2433.7,2433.6,33.49255]
[1751029649041,1.69402,2433.7,2433.6,32.671]
[1751029649734,0.82155,2433.6,2433.5,4.02937]
[1751029649944,0.82155,2433.6,2433.5,36.69937]
[1751029650131,0.8725,2433.7,2433.5,36.69937]
[1751029650336,0.82155,2433.6,2433.5,36.69937]
[1751029651342,0.82155,2433.6,2433.5,3.2078]
[1751029651538,0.82162,2433.4,2433.3,0.8939]
[1751029651839,0.82162,2433.4,2433.3,33.5609]
[1751029652243,0.82162,2433.4,2433.3,33.48763]
[1751029652540,8.2078,2433.4,2432.6,3.2078]
[1751029652840,0.82209,2432.0,2431.9,6.897]
[1751029653040,0.82213,2431.9,2431.8,0.9023]
[1751029653232,0.82206,2432.1,2431.8,0.9023]
[1751029653429,7.26845489,2432.3,2431.9,3.2078]
[1751029653635,1.3458,2432.2,2431.9,3.2078]
[1751029653936,0.82209,2432.0,2431.9,3.2078]
[1751029655646,0.82207,2432.1,2431.9,4.02993]
[1751029655947,9.32345489,2432.3,2431.9,3.2078]
[1751029656243,2.26786,2432.1,2432.0,25.77]
[1751029656629,0.82209,2432.0,2431.9,28.9768]
[1751029656841,8.09054489,2432.0,2431.9,28.9768]
[1751029657034,8.93654489,2432.0,2431.9,28.9768]
[1751029657239,1.66809,2432.0,2431.9,28.9768]
[1751029657842,0.846,2432.0,2431.9,29.79893]
[1751029658041,1.99,2432.0,2431.9,29.79893]
[1751029658441,1.99,2432.0,2431.9,28.9768]
[1751029658442,2.81209,2432.0,2431.9,28.9768]
[1751029658940,1.99,2432.0,2431.9,28.9768]
[1751029659343,1.99,2432.0,2431.9,29.79893]
[1751029663944,1.99,2432.0,2431.9,31.13623]
[1751029664543,1.99,2432.0,2431.9,36.13623]
[1751029665142,3.2078,2432.8,2432.7,0.82185]
[1751029665346,3.2078,2432.8,2432.7,26.59685]
[1751029665640,0.82181,2432.9,2432.7,28.9828]
[1751029665844,0.82181,2432.9,2432.7,4.02965]
[1751029666050,0.82182,2432.8,2432.7,3.2078]
[1751029666248,0.82182,2432.8,2432.7,28.9828]
[1751029666648,8.09026489,2432.9,2432.7,28.9828]
[1751029666948,8.09026489,2432.9,2432.7,29.80465]
[1751029667145,2.81177,2433.0,2432.8,0.82182]
[1751029667343,1.99,2433.0,2432.9,0.82179]
[1751029667544,0.82175,2433.0,2432.9,0.82179]
[1751029667848,3.09214,2433.1,2432.7,28.9828]
[1751029668045,1.99,2433.0,2432.9,0.82176]
[1751029668247,1.99,2433.0,2432.9,0.82179]
[1751029669743,1.99,2433.0,2432.9,2.26879]
[1751029673150,1.99,2433.0,2432.9,32.65]
[1751029673339,1.99,2433.0,2432.9,33.47179]
[1751029673754,1.99,2433.0,2432.9,0.82179]
[1751029673948,2.81175,2433.0,2432.9,26.58879]
[1751029674155,4.16835,2433.0,2432.9,26.58879]
[1751029674453,4.16835,2433.0,2432.8,26.58881]
[1751029674745,0.8177,2432.9,2432.8,26.58881]
[1751029674951,2.1743,2432.9,2432.8,26.58881]
[1751029676053,0.8177,2432.9,2432.8,26.58881]
[1751029676451,1.99,2433.0,2432.9,0.82179]
[1751029678053,4.25105,2433.0,2432.9,0.82179]
[1751029678250,4.25105,2433.0,2432.8,26.5888]
[1751029678557,4.25105,2433.0,2432.9,0.82179]
[1751029678854,5.51069578,2433.0,2432.9,0.82179]
[1751029680153,3.24964578,2433.0,2432.9,0.82179]
[1751029680353,1.99,2433.0,2432.9,0.82179]
[1751029680550,1.99,2433.0,2432.9,3.07219]
[1751029681555,1.99,2433.0,2432.9,1.72519]
[1751029681750,1.99,2433.0,2432.9,34.36619]
[1751029682055,1.99,2433.0,2432.9,1.72519]
[1751029682256,1.99,2433.0,2432.9,34.36519]
[1751029682257,3.2515279,2433.0,2432.9,34.36519]
[1751029682451,1.99,2433.0,2432.9,34.36519]
[1751029682652,1.14129,2433.0,2432.9,39.36519]
[1751029682865,1.14129,2433.0,2432.9,88.69319]
[1751029683757,1.68352,2433.7,2433.4,0.82159]
[1751029683959,2.08091004,2433.6,2433.5,32.637]
[1751029684165,1.25936004,2433.6,2433.5,32.637]
[1751029684457,2.40066004,2433.6,2433.5,33.45859]
[1751029687160,3.85966004,2433.6,2433.5,33.45859]
[1751029689466,3.85966004,2433.6,2433.5,0.82159]
[1751029689663,3.85966004,2433.6,2433.5,33.45159]
[1751029690365,2.40066004,2433.6,2433.5,33.45159]
[1751029690758,3.72936004,2433.6,2433.5,33.45159]
[1751029691971,4.55091004,2433.6,2433.4,0.8216]
[1751029692169,0.82165,2433.3,2433.0,3.2078]
[1751029692367,2.2622,2433.2,2433.1,26.5677]
[1751029692857,0.8552,2433.2,2433.1,26.5677]
[1751029693556,0.8552,2433.5,2433.4,0.82162]
[1751029693760,0.8552,2433.5,2433.4,26.56662]
[1751029693967,2.11197671,2433.5,2433.4,26.56662]
[1751029694267,3.24807671,2433.5,2433.4,26.56662]
[1751029695059,3.24807671,2433.5,2433.4,27.40552]
[1751029696661,1.9913,2433.5,2433.4,28.75772]
[1751029698268,1.9913,2433.5,2433.4,37.53888838]
[1751029698473,0.8641,2434.2,2434.1,0.82138]
[1751029698771,2.12199349,2434.2,2434.1,29.76918]
[1751029699067,2.94334349,2434.2,2434.0,0.82142]
[1751029699274,1.25789349,2434.1,2434.0,0.82142]
[1751029699471,1.25789349,2434.1,2434.0,33.42642]
[1751029699673,6.43556187,2434.1,2434.0,33.42642]
[1751029700373,2.65439349,2434.1,2434.0,33.42642]
[1751029701368,1.25789349,2434.1,2434.0,33.42642]
[1751029703176,2.39299349,2434.1,2434.0,33.42642]
[1751029703377,2.39299349,2434.1,2434.0,33.42242]
[1751029704272,1.1351,2434.1,2434.0,33.42242]
[1751029709378,2.39095583,2434.1,2434.0,33.42242]
[1751029710281,1.1351,2434.1,2434.0,33.42242]
[1751029710880,1.1351,2434.1,2434.0,0.82142]
[1751029711177,1.1351,2434.1,2434.0,33.41142]